[Event "Titled Tuesday Blitz August 1 Late 2023"]
[White "Manukyan, Sargis V."]
[Black "Klukin, Kirill"]
[WhiteFideId "13303465"]
[BlackFideId "24199273"]
[WhiteElo "2605"]
[BlackElo "2693"]
[Result "1-0"]
[Round "10"]
[TimeControl "180+1"]
[Date "2023.08.01"]
[WhiteClock "0:00:08"]
[BlackClock "0:00:06"]
[Board "24"]

1. d4 {[%clk 0:03:00]}  f5 {[%clk 0:03:00]} 2. c4 {[%clk 0:02:58]}  e6 {[%clk 0:03:00]} 3. Nc3 {[%clk 0:02:58]}  Nf6 {[%clk 0:02:59]} 4. Nf3 {[%clk 0:02:58]}  Bb4 {[%clk 0:02:59]} 5. Bd2 {[%clk 0:02:57]}  b6 {[%clk 0:02:59]} 6. e3 {[%clk 0:02:57]}  Bb7 {[%clk 0:02:59]} 7. Bd3 {[%clk 0:02:58]}  O-O {[%clk 0:02:59]} 8. O-O {[%clk 0:02:56]}  a5 {[%clk 0:02:56]} 9. Rc1 {[%clk 0:02:54]}  Bxc3 {[%clk 0:02:56]} 10. Bxc3 {[%clk 0:02:55]}  Nc6 {[%clk 0:02:46]} 11. b3 {[%clk 0:02:38]}  Ne4 {[%clk 0:02:41]} 12. Bb2 {[%clk 0:02:36]}  Ne7 {[%clk 0:02:39]} 13. Nd2 {[%clk 0:02:22]}  a4 {[%clk 0:02:18]} 14. f3 {[%clk 0:02:15]}  Nxd2 {[%clk 0:02:15]} 15. Qxd2 {[%clk 0:02:16]}  axb3 {[%clk 0:02:16]} 16. axb3 {[%clk 0:02:16]}  Nc6 {[%clk 0:02:10]} 17. Bb1 {[%clk 0:02:11]}  Qe7 {[%clk 0:02:09]} 18. e4 {[%clk 0:02:05]}  fxe4 {[%clk 0:02:05]} 19. fxe4 {[%clk 0:02:05]}  e5 {[%clk 0:01:40]} 20. d5 {[%clk 0:01:52]}  Na5 {[%clk 0:01:24]} 21. Qc3 {[%clk 0:01:32]}  Qc5+ {[%clk 0:00:51]} 22. Kh1 {[%clk 0:01:30]}  Rxf1+ {[%clk 0:00:51]} 23. Rxf1 {[%clk 0:01:30]}  Rf8 {[%clk 0:00:52]} 24. Rxf8+ {[%clk 0:01:24]}  Qxf8 {[%clk 0:00:53]} 25. Kg1 {[%clk 0:01:15]}  c5 {[%clk 0:00:14]} 26. Qxe5 {[%clk 0:00:32]}  Nxb3 {[%clk 0:00:13]} 27. Bd3 {[%clk 0:00:25]}  Ba6 {[%clk 0:00:10]} 28. d6 {[%clk 0:00:21]}  Na5 {[%clk 0:00:03]} 29. Qd5+ {[%clk 0:00:17]}  Kh8 {[%clk 0:00:03]} 30. e5 {[%clk 0:00:11]}  Bb7 {[%clk 0:00:03]} 31. e6 {[%clk 0:00:06]}  Bxd5 {[%clk 0:00:04]} 32. e7 {[%clk 0:00:07]}  Qe8 {[%clk 0:00:03]} 33. cxd5 {[%clk 0:00:07]}  Nb7 {[%clk 0:00:04]} 34. Be5 {[%clk 0:00:06]}  h6 {[%clk 0:00:03]} 35. Ba6 {[%clk 0:00:06]}  Na5 {[%clk 0:00:02]} 36. Bd3 {[%clk 0:00:06]}  c4 {[%clk 0:00:03]} 37. Bf5 {[%clk 0:00:06]}  b5 {[%clk 0:00:03]} 38. h4 {[%clk 0:00:07]}  Kg8 {[%clk 0:00:03]} 39. h5 {[%clk 0:00:07]}  Nb7 {[%clk 0:00:03]} 40. Bg6 {[%clk 0:00:07]}  Nxd6 {[%clk 0:00:02]} 41. Bxd6 {[%clk 0:00:07]}  Qf7 {[%clk 0:00:02]} 42. e8=Q+ {[%clk 0:00:06]}  Qxe8 {[%clk 0:00:02]} 43. Bxe8 {[%clk 0:00:07]}  c3 {[%clk 0:00:03]} 44. Bxd7 {[%clk 0:00:06]}  c2 {[%clk 0:00:03]} 45. Ba3 {[%clk 0:00:06]}  b4 {[%clk 0:00:04]} 46. Bc1 {[%clk 0:00:06]}  b3 {[%clk 0:00:05]} 47. Be6+ {[%clk 0:00:07]}  Kf8 {[%clk 0:00:06]} 48. d6 {[%clk 0:00:07]}  Ke8 {[%clk 0:00:06]} 49. Bxb3 {[%clk 0:00:07]}  Kd8 {[%clk 0:00:06]} 50. Bxc2 {[%clk 0:00:08]} 1-0


[Site "https://www.chess.com"]

[Event "Titled Tuesday Blitz August 1 Late 2023"]
[White "Vlassov, Nikolai"]
[Black "Papasimakopoulos, Alexandros"]
[WhiteFideId "4103360"]
[BlackFideId "4244125"]
[WhiteElo "2588"]
[BlackElo "2691"]
[Result "0-1"]
[Round "10"]
[TimeControl "180+1"]
[Date "2023.08.01"]
[WhiteClock "0:00:00"]
[BlackClock "0:01:24"]
[Board "25"]

1. e4 {[%clk 0:03:00]}  e6 {[%clk 0:02:59]} 2. Nc3 {[%clk 0:02:53]}  d5 {[%clk 0:03:00]} 3. Nf3 {[%clk 0:02:54]}  Nf6 {[%clk 0:02:57]} 4. e5 {[%clk 0:02:50]}  Nfd7 {[%clk 0:02:57]} 5. d4 {[%clk 0:02:50]}  c5 {[%clk 0:02:42]} 6. dxc5 {[%clk 0:02:50]}  Nc6 {[%clk 0:02:42]} 7. Bf4 {[%clk 0:02:49]}  Nxc5 {[%clk 0:02:39]} 8. Bb5 {[%clk 0:02:42]}  Bd7 {[%clk 0:02:38]} 9. O-O {[%clk 0:02:41]}  Be7 {[%clk 0:02:38]} 10. Nd4 {[%clk 0:02:18]}  Nxd4 {[%clk 0:02:31]} 11. Qxd4 {[%clk 0:02:15]}  O-O {[%clk 0:02:27]} 12. Be2 {[%clk 0:02:10]}  Rc8 {[%clk 0:02:26]} 13. Bg3 {[%clk 0:02:06]}  f6 {[%clk 0:02:20]} 14. exf6 {[%clk 0:01:40]}  Bxf6 {[%clk 0:02:19]} 15. Be5 {[%clk 0:01:40]}  Bxe5 {[%clk 0:02:18]} 16. Qxe5 {[%clk 0:01:40]}  Qf6 {[%clk 0:02:18]} 17. Qxf6 {[%clk 0:01:39]}  gxf6 {[%clk 0:02:18]} 18. Rac1 {[%clk 0:01:37]}  d4 {[%clk 0:02:18]} 19. Nb1 {[%clk 0:01:31]}  e5 {[%clk 0:02:16]} 20. Rfd1 {[%clk 0:01:28]}  Bf5 {[%clk 0:02:14]} 21. g4 {[%clk 0:01:18]}  Bg6 {[%clk 0:02:14]} 22. h4 {[%clk 0:01:19]}  h6 {[%clk 0:02:12]} 23. f4 {[%clk 0:01:15]}  Rfd8 {[%clk 0:02:06]} 24. fxe5 {[%clk 0:00:56]}  fxe5 {[%clk 0:02:06]} 25. Na3 {[%clk 0:00:56]}  Na4 {[%clk 0:01:54]} 26. Nc4 {[%clk 0:00:47]}  e4 {[%clk 0:01:47]} 27. Ne5 {[%clk 0:00:47]}  Kg7 {[%clk 0:01:45]} 28. Nxg6 {[%clk 0:00:38]}  Kxg6 {[%clk 0:01:46]} 29. Re1 {[%clk 0:00:14]}  Nxb2 {[%clk 0:01:41]} 30. Bd1 {[%clk 0:00:11]}  d3 {[%clk 0:01:25]} 31. Rxe4 {[%clk 0:00:00]}  Nxd1 {[%clk 0:01:24]} 0-1


[Site "https://www.chess.com"]

[Event "Titled Tuesday Blitz August 1 Late 2023"]
[White "Korchmar, Vasiliy"]
[Black "Musovic, Armin"]
[WhiteFideId "24131750"]
[BlackFideId "939935"]
[WhiteElo "2682"]
[BlackElo "2578"]
[Result "1-0"]
[Round "10"]
[TimeControl "180+1"]
[Date "2023.08.01"]
[WhiteClock "0:00:43"]
[BlackClock "0:00:04"]
[Board "27"]

1. e4 {[%clk 0:03:00]}  c6 {[%clk 0:03:00]} 2. d4 {[%clk 0:02:59]}  d5 {[%clk 0:03:00]} 3. exd5 {[%clk 0:03:00]}  cxd5 {[%clk 0:03:00]} 4. Bd3 {[%clk 0:02:59]}  Nc6 {[%clk 0:03:01]} 5. c3 {[%clk 0:02:59]}  Nf6 {[%clk 0:03:01]} 6. h3 {[%clk 0:02:59]}  g6 {[%clk 0:03:02]} 7. Nf3 {[%clk 0:02:59]}  Bg7 {[%clk 0:03:03]} 8. O-O {[%clk 0:02:58]}  O-O {[%clk 0:03:04]} 9. Re1 {[%clk 0:02:57]}  Re8 {[%clk 0:03:04]} 10. Nbd2 {[%clk 0:02:55]}  Nd7 {[%clk 0:03:05]} 11. Nf1 {[%clk 0:02:51]}  Nf8 {[%clk 0:03:05]} 12. Ng3 {[%clk 0:02:48]}  f6 {[%clk 0:03:04]} 13. Bf4 {[%clk 0:02:44]}  a6 {[%clk 0:03:04]} 14. Qd2 {[%clk 0:02:44]}  Be6 {[%clk 0:03:03]} 15. b3 {[%clk 0:02:38]}  Bf7 {[%clk 0:03:01]} 16. c4 {[%clk 0:02:30]}  e6 {[%clk 0:02:55]} 17. Rac1 {[%clk 0:02:27]}  Qd7 {[%clk 0:02:51]} 18. a3 {[%clk 0:02:25]}  Rad8 {[%clk 0:02:50]} 19. Be3 {[%clk 0:02:13]}  Qd6 {[%clk 0:02:41]} 20. b4 {[%clk 0:02:11]}  Ne7 {[%clk 0:02:31]} 21. a4 {[%clk 0:02:00]}  Nf5 {[%clk 0:02:22]} 22. Nxf5 {[%clk 0:01:51]}  exf5 {[%clk 0:02:23]} 23. c5 {[%clk 0:01:47]}  Qd7 {[%clk 0:02:14]} 24. b5 {[%clk 0:01:47]}  Ne6 {[%clk 0:02:13]} 25. c6 {[%clk 0:01:41]}  bxc6 {[%clk 0:02:14]} 26. bxc6 {[%clk 0:01:42]}  Qc7 {[%clk 0:02:08]} 27. Qa2 {[%clk 0:01:28]}  f4 {[%clk 0:02:06]} 28. Bd2 {[%clk 0:01:27]}  Ng5 {[%clk 0:01:54]} 29. Rxe8+ {[%clk 0:01:21]}  Rxe8 {[%clk 0:01:49]} 30. Nxg5 {[%clk 0:01:20]}  fxg5 {[%clk 0:01:50]} 31. Qb2 {[%clk 0:01:07]}  f3 {[%clk 0:01:43]} 32. g3 {[%clk 0:01:04]}  Qc8 {[%clk 0:01:25]} 33. Kh2 {[%clk 0:01:00]}  g4 {[%clk 0:01:21]} 34. h4 {[%clk 0:00:59]}  Re7 {[%clk 0:00:58]} 35. Bf4 {[%clk 0:00:58]}  h6 {[%clk 0:00:41]} 36. c7 {[%clk 0:00:58]}  Re8 {[%clk 0:00:32]} 37. Qb8 {[%clk 0:00:53]}  Be6 {[%clk 0:00:33]} 38. Bxa6 {[%clk 0:00:50]}  Qxa6 {[%clk 0:00:10]} 39. Qxe8+ {[%clk 0:00:47]}  Kh7 {[%clk 0:00:10]} 40. c8=Q {[%clk 0:00:45]}  Bxc8 {[%clk 0:00:08]} 41. Rxc8 {[%clk 0:00:46]}  g5 {[%clk 0:00:06]} 42. h5 {[%clk 0:00:44]}  Qf1 {[%clk 0:00:04]} 43. Qg6# {[%clk 0:00:43]} 1-0


[Site "https://www.chess.com"]

[Event "Titled Tuesday Blitz August 1 Late 2023"]
[White "Grossboss19"]
[Black "Golubka, Petro"]
[BlackFideId "14114224"]
[WhiteElo "2519"]
[BlackElo "2729"]
[Result "0-1"]
[Round "10"]
[TimeControl "180+1"]
[Date "2023.08.01"]
[WhiteClock "0:00:04"]
[BlackClock "0:00:46"]
[Board "31"]

1. Nf3 {[%clk 0:03:00]}  b6 {[%clk 0:02:52]} 2. g3 {[%clk 0:02:59]}  Bb7 {[%clk 0:02:52]} 3. Bg2 {[%clk 0:02:59]}  e6 {[%clk 0:02:46]} 4. O-O {[%clk 0:02:59]}  Nf6 {[%clk 0:02:47]} 5. c4 {[%clk 0:02:58]}  Be7 {[%clk 0:02:47]} 6. Nc3 {[%clk 0:02:58]}  Ne4 {[%clk 0:02:46]} 7. Qc2 {[%clk 0:02:56]}  Nxc3 {[%clk 0:02:46]} 8. Qxc3 {[%clk 0:02:55]}  Bf6 {[%clk 0:02:46]} 9. Qc2 {[%clk 0:02:55]}  c5 {[%clk 0:02:44]} 10. e4 {[%clk 0:02:52]}  Nc6 {[%clk 0:02:43]} 11. a3 {[%clk 0:02:50]}  h6 {[%clk 0:02:41]} 12. d3 {[%clk 0:02:48]}  a5 {[%clk 0:02:41]} 13. Bf4 {[%clk 0:02:40]}  d6 {[%clk 0:02:17]} 14. Rfe1 {[%clk 0:02:33]}  O-O {[%clk 0:02:03]} 15. Rad1 {[%clk 0:02:23]}  Nd4 {[%clk 0:01:58]} 16. Nxd4 {[%clk 0:02:19]}  Bxd4 {[%clk 0:01:59]} 17. Bd2 {[%clk 0:02:15]}  a4 {[%clk 0:01:58]} 18. Bc3 {[%clk 0:02:14]}  e5 {[%clk 0:01:56]} 19. Bxd4 {[%clk 0:02:09]}  cxd4 {[%clk 0:01:57]} 20. Bh3 {[%clk 0:02:08]}  Bc6 {[%clk 0:01:56]} 21. Rb1 {[%clk 0:01:55]}  Qc7 {[%clk 0:01:53]} 22. Rec1 {[%clk 0:01:52]}  Rfb8 {[%clk 0:01:49]} 23. Bg4 {[%clk 0:01:48]}  Ra5 {[%clk 0:01:48]} 24. h4 {[%clk 0:01:45]}  Rc5 {[%clk 0:01:47]} 25. Qd2 {[%clk 0:01:42]}  b5 {[%clk 0:01:45]} 26. cxb5 {[%clk 0:01:42]}  Bxb5 {[%clk 0:01:42]} 27. Rxc5 {[%clk 0:01:42]}  Qxc5 {[%clk 0:01:34]} 28. Rc1 {[%clk 0:01:42]}  Qb6 {[%clk 0:01:34]} 29. Qc2 {[%clk 0:01:29]}  Ba6 {[%clk 0:01:29]} 30. h5 {[%clk 0:00:50]}  Qxb2 {[%clk 0:01:14]} 31. Qxb2 {[%clk 0:00:47]}  Rxb2 {[%clk 0:01:14]} 32. Rc6 {[%clk 0:00:29]}  Bxd3 {[%clk 0:01:13]} 33. Rc8+ {[%clk 0:00:28]}  Kh7 {[%clk 0:01:12]} 34. Bf5+ {[%clk 0:00:27]}  g6 {[%clk 0:01:12]} 35. hxg6+ {[%clk 0:00:27]}  fxg6 {[%clk 0:01:13]} 36. Rc7+ {[%clk 0:00:28]}  Kg8 {[%clk 0:01:13]} 37. Bxg6 {[%clk 0:00:28]}  Rc2 {[%clk 0:01:05]} 38. Ra7 {[%clk 0:00:19]}  Be2 {[%clk 0:00:57]} 39. Rd7 {[%clk 0:00:15]}  Rc6 {[%clk 0:00:54]} 40. Bf7+ {[%clk 0:00:14]}  Kf8 {[%clk 0:00:52]} 41. Bd5 {[%clk 0:00:14]}  Rc1+ {[%clk 0:00:52]} 42. Kg2 {[%clk 0:00:14]}  d3 {[%clk 0:00:49]} 43. Rxd6 {[%clk 0:00:07]}  d2 {[%clk 0:00:48]} 44. Bc4 {[%clk 0:00:07]}  d1=Q {[%clk 0:00:47]} 45. Rxd1 {[%clk 0:00:07]}  Bxd1 {[%clk 0:00:46]} 46. Kh3 {[%clk 0:00:04]}  Rxc4 {[%clk 0:00:46]} 0-1


[Site "https://www.chess.com"]

[Event "Titled Tuesday Blitz August 1 Late 2023"]
[White "Kazakov, Mikhail"]
[Black "vishwa_vijeta"]
[WhiteFideId "14102749"]
[WhiteElo "2463"]
[BlackElo "2578"]
[Result "0-1"]
[Round "10"]
[TimeControl "180+1"]
[Date "2023.08.01"]
[WhiteClock "0:00:09"]
[BlackClock "0:00:26"]
[Board "37"]

1. d4 {[%clk 0:03:00]}  Nf6 {[%clk 0:02:59]} 2. c4 {[%clk 0:02:59]}  g6 {[%clk 0:02:59]} 3. Nc3 {[%clk 0:02:57]}  d5 {[%clk 0:02:59]} 4. Bg5 {[%clk 0:02:51]}  Ne4 {[%clk 0:02:53]} 5. Bh4 {[%clk 0:02:50]}  Nxc3 {[%clk 0:02:29]} 6. bxc3 {[%clk 0:02:49]}  Bg7 {[%clk 0:02:30]} 7. e3 {[%clk 0:02:48]}  O-O {[%clk 0:02:29]} 8. Nf3 {[%clk 0:02:47]}  c5 {[%clk 0:02:30]} 9. cxd5 {[%clk 0:02:43]}  cxd4 {[%clk 0:02:28]} 10. cxd4 {[%clk 0:02:41]}  Qxd5 {[%clk 0:02:28]} 11. Be2 {[%clk 0:02:09]}  Nc6 {[%clk 0:02:27]} 12. O-O {[%clk 0:02:06]}  Bg4 {[%clk 0:02:17]} 13. Qb3 {[%clk 0:02:01]}  Qxb3 {[%clk 0:02:03]} 14. axb3 {[%clk 0:02:02]}  e5 {[%clk 0:02:03]} 15. dxe5 {[%clk 0:01:47]}  Nxe5 {[%clk 0:01:55]} 16. Rac1 {[%clk 0:01:40]}  Rac8 {[%clk 0:01:50]} 17. h3 {[%clk 0:01:31]}  Nxf3+ {[%clk 0:01:43]} 18. Bxf3 {[%clk 0:01:27]}  Bxf3 {[%clk 0:01:42]} 19. gxf3 {[%clk 0:01:28]}  h6 {[%clk 0:01:31]} 20. Rfd1 {[%clk 0:01:26]}  g5 {[%clk 0:01:29]} 21. Bg3 {[%clk 0:01:25]}  b5 {[%clk 0:01:09]} 22. b4 {[%clk 0:01:12]}  Rfd8 {[%clk 0:00:57]} 23. Rxd8+ {[%clk 0:00:58]}  Rxd8 {[%clk 0:00:58]} 24. Rc7 {[%clk 0:00:53]}  a6 {[%clk 0:00:56]} 25. Rc6 {[%clk 0:00:50]}  Rd1+ {[%clk 0:00:55]} 26. Kg2 {[%clk 0:00:49]}  Ra1 {[%clk 0:00:45]} 27. Bc7 {[%clk 0:00:45]}  Bf8 {[%clk 0:00:42]} 28. Ba5 {[%clk 0:00:44]}  Ra4 {[%clk 0:00:41]} 29. Kg3 {[%clk 0:00:26]}  Bxb4 {[%clk 0:00:38]} 30. Bxb4 {[%clk 0:00:24]}  Rxb4 {[%clk 0:00:38]} 31. Rxa6 {[%clk 0:00:25]}  Kg7 {[%clk 0:00:38]} 32. e4 {[%clk 0:00:23]}  h5 {[%clk 0:00:34]} 33. h4 {[%clk 0:00:22]}  f6 {[%clk 0:00:34]} 34. Rb6 {[%clk 0:00:20]}  Rb3 {[%clk 0:00:32]} 35. Rc6 {[%clk 0:00:18]}  b4 {[%clk 0:00:31]} 36. hxg5 {[%clk 0:00:16]}  fxg5 {[%clk 0:00:32]} 37. Kg2 {[%clk 0:00:16]}  Rb1 {[%clk 0:00:32]} 38. Rb6 {[%clk 0:00:15]}  b3 {[%clk 0:00:32]} 39. f4 {[%clk 0:00:15]}  gxf4 {[%clk 0:00:31]} 40. Kf3 {[%clk 0:00:16]}  h4 {[%clk 0:00:27]} 41. Kg4 {[%clk 0:00:14]}  b2 {[%clk 0:00:25]} 42. Kxf4 {[%clk 0:00:13]}  h3 {[%clk 0:00:26]} 43. Kg3 {[%clk 0:00:09]}  Rg1+ {[%clk 0:00:26]} 0-1


[Site "https://www.chess.com"]

[Event "Titled Tuesday Blitz August 1 Late 2023"]
[White "Reprintsev, Alexander"]
[Black "Karamsetty, Jeevan"]
[WhiteFideId "14100541"]
[BlackFideId "2025337"]
[WhiteElo "2462"]
[BlackElo "2563"]
[Result "1/2-1/2"]
[Round "10"]
[TimeControl "180+1"]
[Date "2023.08.01"]
[WhiteClock "0:00:06"]
[BlackClock "0:00:03"]
[Board "38"]

1. e4 {[%clk 0:03:00]}  d6 {[%clk 0:02:59]} 2. d4 {[%clk 0:03:00]}  Nf6 {[%clk 0:03:00]} 3. Nc3 {[%clk 0:03:00]}  e5 {[%clk 0:03:00]} 4. dxe5 {[%clk 0:02:59]}  dxe5 {[%clk 0:03:01]} 5. Qxd8+ {[%clk 0:02:58]}  Kxd8 {[%clk 0:03:02]} 6. Bd2 {[%clk 0:02:58]}  Bd6 {[%clk 0:02:45]} 7. h4 {[%clk 0:02:57]}  a6 {[%clk 0:02:39]} 8. f3 {[%clk 0:02:55]}  Be6 {[%clk 0:02:35]} 9. g4 {[%clk 0:02:53]}  h6 {[%clk 0:02:33]} 10. Nge2 {[%clk 0:02:48]}  Nc6 {[%clk 0:02:32]} 11. Bh3 {[%clk 0:02:44]}  b5 {[%clk 0:02:23]} 12. g5 {[%clk 0:02:42]}  hxg5 {[%clk 0:02:23]} 13. Bxe6 {[%clk 0:02:41]}  fxe6 {[%clk 0:02:23]} 14. Bxg5 {[%clk 0:02:41]}  Nd4 {[%clk 0:02:19]} 15. Nxd4 {[%clk 0:02:16]}  exd4 {[%clk 0:02:20]} 16. Ne2 {[%clk 0:02:16]}  e5 {[%clk 0:02:16]} 17. c3 {[%clk 0:02:16]}  c5 {[%clk 0:02:15]} 18. cxd4 {[%clk 0:02:12]}  cxd4 {[%clk 0:02:12]} 19. Rc1 {[%clk 0:02:11]}  Kd7 {[%clk 0:02:10]} 20. Kf2 {[%clk 0:02:00]}  Rac8 {[%clk 0:02:06]} 21. Ng3 {[%clk 0:01:53]}  Nh7 {[%clk 0:01:52]} 22. Bd2 {[%clk 0:01:50]}  g6 {[%clk 0:01:51]} 23. Rhg1 {[%clk 0:01:49]}  Be7 {[%clk 0:01:46]} 24. h5 {[%clk 0:01:47]}  gxh5 {[%clk 0:01:45]} 25. Nxh5 {[%clk 0:01:47]}  Nf6 {[%clk 0:01:33]} 26. Nxf6+ {[%clk 0:01:45]}  Bxf6 {[%clk 0:01:31]} 27. Ke2 {[%clk 0:01:30]}  Rh2+ {[%clk 0:01:25]} 28. Kd3 {[%clk 0:01:29]}  Rxc1 {[%clk 0:01:20]} 29. Bxc1 {[%clk 0:01:19]}  Rh3 {[%clk 0:01:02]} 30. Rf1 {[%clk 0:01:08]}  Ke6 {[%clk 0:00:58]} 31. Bd2 {[%clk 0:01:04]}  Be7 {[%clk 0:00:53]} 32. Rf2 {[%clk 0:00:59]}  Bh4 {[%clk 0:00:51]} 33. Rf1 {[%clk 0:00:58]}  Be7 {[%clk 0:00:51]} 34. Rf2 {[%clk 0:00:58]}  Rg3 {[%clk 0:00:33]} 35. Be1 {[%clk 0:00:46]}  Rg1 {[%clk 0:00:28]} 36. Bd2 {[%clk 0:00:46]}  Ra1 {[%clk 0:00:24]} 37. a3 {[%clk 0:00:45]}  Rb1 {[%clk 0:00:23]} 38. Kc2 {[%clk 0:00:45]}  Rg1 {[%clk 0:00:21]} 39. f4 {[%clk 0:00:37]}  exf4 {[%clk 0:00:18]} 40. Bxf4 {[%clk 0:00:38]}  Bc5 {[%clk 0:00:16]} 41. Rh2 {[%clk 0:00:33]}  Rg4 {[%clk 0:00:15]} 42. Rh6+ {[%clk 0:00:25]}  Kd7 {[%clk 0:00:16]} 43. Rf6 {[%clk 0:00:22]}  a5 {[%clk 0:00:12]} 44. Kd3 {[%clk 0:00:17]}  b4 {[%clk 0:00:11]} 45. axb4 {[%clk 0:00:16]}  axb4 {[%clk 0:00:11]} 46. Kc4 {[%clk 0:00:15]}  Be7 {[%clk 0:00:07]} 47. Rf5 {[%clk 0:00:15]}  Rg2 {[%clk 0:00:06]} 48. b3 {[%clk 0:00:13]}  Rc2+ {[%clk 0:00:06]} 49. Kxd4 {[%clk 0:00:13]}  Rc3 {[%clk 0:00:06]} 50. Rd5+ {[%clk 0:00:11]}  Ke6 {[%clk 0:00:04]} 51. Rb5 {[%clk 0:00:11]}  Rxb3 {[%clk 0:00:04]} 52. Rb6+ {[%clk 0:00:12]}  Kf7 {[%clk 0:00:04]} 53. e5 {[%clk 0:00:12]}  Rc3 {[%clk 0:00:04]} 54. e6+ {[%clk 0:00:12]}  Kf6 {[%clk 0:00:03]} 55. Be5+ {[%clk 0:00:12]}  Kf5 {[%clk 0:00:03]} 56. Bg7 {[%clk 0:00:11]}  Bc5+ {[%clk 0:00:03]} 57. Kd5 {[%clk 0:00:10]}  Bxb6 {[%clk 0:00:03]} 58. Bxc3 {[%clk 0:00:11]}  Bd8 {[%clk 0:00:02]} 59. Bxb4 {[%clk 0:00:10]}  Kf6 {[%clk 0:00:03]} 60. Bd6 {[%clk 0:00:10]}  Be7 {[%clk 0:00:03]} 61. Bc7 {[%clk 0:00:08]}  Kg7 {[%clk 0:00:02]} 62. Be5+ {[%clk 0:00:09]}  Kf8 {[%clk 0:00:03]} 63. Kc6 {[%clk 0:00:09]}  Ke8 {[%clk 0:00:04]} 64. Bd6 {[%clk 0:00:08]}  Bxd6 {[%clk 0:00:03]} 65. Kxd6 {[%clk 0:00:09]}  Kd8 {[%clk 0:00:03]} 66. e7+ {[%clk 0:00:05]}  Ke8 {[%clk 0:00:03]} 67. Ke6 {[%clk 0:00:06]} 1/2-1/2


[Site "https://www.chess.com"]

[Event "Titled Tuesday Blitz August 1 Late 2023"]
[White "Schnaider, Ilan"]
[Black "Michalczak, Thomas"]
[WhiteFideId "169013"]
[BlackFideId "4622634"]
[WhiteElo "2678"]
[BlackElo "2515"]
[Result "1-0"]
[Round "10"]
[TimeControl "180+1"]
[Date "2023.08.01"]
[WhiteClock "0:00:28"]
[BlackClock "0:00:00"]
[Board "41"]

1. e4 {[%clk 0:02:41]}  e5 {[%clk 0:02:59]} 2. Nf3 {[%clk 0:02:34]}  Nc6 {[%clk 0:02:57]} 3. Bc4 {[%clk 0:02:30]}  Nf6 {[%clk 0:02:56]} 4. d3 {[%clk 0:02:25]}  Bc5 {[%clk 0:02:55]} 5. c3 {[%clk 0:02:25]}  d6 {[%clk 0:02:55]} 6. O-O {[%clk 0:02:26]}  O-O {[%clk 0:02:54]} 7. h3 {[%clk 0:02:25]}  a5 {[%clk 0:02:52]} 8. Re1 {[%clk 0:02:25]}  h6 {[%clk 0:02:52]} 9. d4 {[%clk 0:02:25]}  Ba7 {[%clk 0:02:52]} 10. Bb3 {[%clk 0:02:26]}  Re8 {[%clk 0:02:50]} 11. Bc2 {[%clk 0:02:26]}  Bd7 {[%clk 0:02:37]} 12. d5 {[%clk 0:02:18]}  Ne7 {[%clk 0:02:36]} 13. Be3 {[%clk 0:02:19]}  Ng6 {[%clk 0:02:35]} 14. Nbd2 {[%clk 0:02:16]}  Bxe3 {[%clk 0:02:28]} 15. Rxe3 {[%clk 0:02:16]}  Nf4 {[%clk 0:02:28]} 16. Nf1 {[%clk 0:02:09]}  N6h5 {[%clk 0:02:26]} 17. Ng3 {[%clk 0:02:08]}  Qf6 {[%clk 0:02:21]} 18. Nh2 {[%clk 0:02:07]}  Qg5 {[%clk 0:01:23]} 19. Qf3 {[%clk 0:02:04]}  Rf8 {[%clk 0:01:09]} 20. Bd1 {[%clk 0:01:59]}  Nf6 {[%clk 0:01:03]} 21. c4 {[%clk 0:01:47]}  b6 {[%clk 0:01:02]} 22. Bc2 {[%clk 0:01:45]}  g6 {[%clk 0:01:01]} 23. Qd1 {[%clk 0:01:36]}  h5 {[%clk 0:01:02]} 24. Nf3 {[%clk 0:01:31]}  Qh6 {[%clk 0:01:02]} 25. Ba4 {[%clk 0:01:28]}  Bc8 {[%clk 0:00:56]} 26. Bc6 {[%clk 0:01:25]}  Rb8 {[%clk 0:00:56]} 27. a3 {[%clk 0:01:25]}  Kg7 {[%clk 0:00:55]} 28. b4 {[%clk 0:01:24]}  h4 {[%clk 0:00:45]} 29. Ne2 {[%clk 0:01:24]}  g5 {[%clk 0:00:35]} 30. Nh2 {[%clk 0:01:24]}  Qg6 {[%clk 0:00:33]} 31. c5 {[%clk 0:01:22]}  axb4 {[%clk 0:00:31]} 32. axb4 {[%clk 0:01:22]}  bxc5 {[%clk 0:00:32]} 33. bxc5 {[%clk 0:01:22]}  Rb2 {[%clk 0:00:31]} 34. Rb1 {[%clk 0:01:11]}  Ra2 {[%clk 0:00:20]} 35. Nc3 {[%clk 0:01:10]}  Ra3 {[%clk 0:00:18]} 36. cxd6 {[%clk 0:01:10]}  cxd6 {[%clk 0:00:18]} 37. Nb5 {[%clk 0:01:11]}  Rxe3 {[%clk 0:00:19]} 38. fxe3 {[%clk 0:01:11]}  N4h5 {[%clk 0:00:15]} 39. Nxd6 {[%clk 0:01:11]}  Nxe4 {[%clk 0:00:15]} 40. Nxe4 {[%clk 0:01:11]}  Qxe4 {[%clk 0:00:15]} 41. Qxh5 {[%clk 0:01:12]}  Qxb1+ {[%clk 0:00:15]} 42. Nf1 {[%clk 0:01:12]}  Qg6 {[%clk 0:00:14]} 43. Qe2 {[%clk 0:01:11]}  f5 {[%clk 0:00:14]} 44. Qb2 {[%clk 0:01:11]}  Qf6 {[%clk 0:00:13]} 45. Qb4 {[%clk 0:01:11]}  e4 {[%clk 0:00:13]} 46. Nd2 {[%clk 0:01:05]}  Rd8 {[%clk 0:00:13]} 47. Nc4 {[%clk 0:01:04]}  f4 {[%clk 0:00:12]} 48. exf4 {[%clk 0:01:00]}  gxf4 {[%clk 0:00:12]} 49. Nd2 {[%clk 0:00:55]}  e3 {[%clk 0:00:11]} 50. Ne4 {[%clk 0:00:55]}  Qa1+ {[%clk 0:00:10]} 51. Kh2 {[%clk 0:00:55]}  Qe5 {[%clk 0:00:09]} 52. Kg1 {[%clk 0:00:54]}  Qa1+ {[%clk 0:00:08]} 53. Kh2 {[%clk 0:00:54]}  Qe5 {[%clk 0:00:09]} 54. Kg1 {[%clk 0:00:54]}  f3 {[%clk 0:00:10]} 55. gxf3 {[%clk 0:00:52]}  e2 {[%clk 0:00:10]} 56. Kf2 {[%clk 0:00:50]}  Ba6 {[%clk 0:00:08]} 57. Qc3 {[%clk 0:00:43]}  Qxc3 {[%clk 0:00:06]} 58. Nxc3 {[%clk 0:00:44]}  Bc4 {[%clk 0:00:04]} 59. Nxe2 {[%clk 0:00:35]}  Bxd5 {[%clk 0:00:04]} 60. Bb5 {[%clk 0:00:28]}  Rf8 {[%clk 0:00:00]} 61. Nd4 {[%clk 0:00:28]} 1-0


[Site "https://www.chess.com"]